lending/lending_fUSD_20251114
["ID","MTS","AMOUNT","RATE_DAILY","PERIOD"]
[393900470,1763085038112,-168.0,0.00017573,2]
[393900473,1763085038122,-173.85,0.00017573,2]
[393900475,1763085038131,-2175.87751157,0.00017591,2]
[393900477,1763085038141,-200.0,0.000176,6]
[393900479,1763085038152,-504.66971274,0.00017621,2]
[393900481,1763085038163,-246.92829124,0.00017621,2]
[393900483,1763085038173,-511.00806472,0.00017621,2]
[393900485,1763085038183,-789.74534705,0.00017621,2]
[393900487,1763085038195,-291.18140883,0.00017635,2]
[393900489,1763085038205,-166.66,0.00017673,2]
[393900491,1763085038215,-485.0,0.00017683,2]
[393900493,1763085038225,-402.72,0.00017688,2]
[393900495,1763085038236,-2175.87751157,0.00017694,2]
[393900497,1763085038248,-300.0,0.000177,5]
[393900499,1763085038257,-200.0,0.000177,6]
[393900501,1763085038267,-152.01,0.00017721,2]
[393900503,1763085038277,-1318.7439,0.0001775,2]
[393900505,1763085038288,-291.18140883,0.00017768,2]
[393900507,1763085038298,-2175.87751157,0.00017797,2]
[393900509,1763085038308,-200.0,0.000178,6]
[393900511,1763085038318,-200.0,0.00017855,2]
[393900513,1763085038327,-200.0,0.00017856,2]
[393900515,1763085038336,-200.0,0.00017856,2]
[393900517,1763085038346,-200.0,0.00017856,2]
[393900519,1763085038356,-5115.0,0.00017891,2]
[393900520,1763085038365,-1000.0,0.00017899,2]
[393900522,1763085038375,-2500.0,0.000179,3]
[393900524,1763085038384,-2175.87751157,0.000179,2]
[393900526,1763085038393,-2500.0,0.000179,3]
[393900527,1763085038402,-200.0,0.000179,6]
[393900528,1763085038412,-291.18140883,0.000179,2]
[393900529,1763085038422,-176.48461054,0.000179,2]
[393900530,1763085038431,-5118.23713311,0.000179,2]
[393900531,1763085038441,-5480.26125437,0.000179,2]
[393900532,1763085038450,-454.31928583,0.000179,3]
[393900533,1763085038460,-300.0,0.00017944,2]
[393900534,1763085038469,-402.72,0.00017962,2]
[393900535,1763085038479,-519.14965667,0.00017973,2]
[393900536,1763085038489,-331.29430014,0.00017973,2]
[393900537,1763085038498,-502.72635091,0.00017973,2]
[393900538,1763085038508,-508.89704052,0.00017973,2]
[393900539,1763085038518,-364.16950107,0.00017973,2]
[393900540,1763085038528,-503.57835272,0.00017973,2]
[393900541,1763085038539,-535.87878682,0.00017973,2]
[393900542,1763085038549,-507.23583524,0.00017973,2]
[393900543,1763085038558,-502.15924823,0.00017973,2]
[393900544,1763085038568,-502.72537723,0.00017973,2]
[393900545,1763085038577,-500.0,0.00017973,2]
[393900546,1763085038587,-501.62506393,0.00017973,2]
[393900547,1763085038596,-342.82540376,0.00017973,2]
[393900548,1763085038606,-503.95087049,0.00017973,2]
[393900549,1763085038615,-512.82488475,0.00017973,2]
[393900550,1763085038625,-502.33310473,0.00017973,2]
[393900551,1763085038634,-27.61245035,0.00017973,2]
[393900552,1763085038651,-473.82754868,0.00017973,2]
[393900553,1763085038661,-504.64216388,0.00017973,2]
[393900554,1763085038671,-501.18214188,0.00017973,2]
[393900555,1763085038682,-160.72130646,0.00017973,2]
[393900556,1763085038692,-163.90845389,0.00017973,2]
[393900557,1763085038702,-160.1867943,0.00017973,2]
[393900558,1763085038712,-501.30404212,0.00017973,2]
[393900559,1763085038722,-500.0,0.00017973,2]
[393900560,1763085038732,-500.0,0.00017973,2]
[393900561,1763085038742,-284.38,0.00017988,2]
[393900562,1763085038751,-284.38,0.00017989,2]
[393900563,1763085038761,-422.59823651,0.00017999,2]
[393900564,1763085038771,-500.0,0.00017999,2]
[393900565,1763085038782,-500.0,0.00017999,2]
[393900566,1763085038792,-178.67275421,0.00017999,2]
[393900567,1763085038802,-500.0,0.00017999,2]
[393900568,1763085038811,-500.0,0.00017999,2]
[393900569,1763085038821,-500.0,0.00017999,2]
[393900570,1763085038831,-540.48113147,0.00017999,2]
[393900571,1763085038842,-1787.10279994,0.00017999,2]
[393900572,1763085038855,-11392.07149075,0.00017999,2]
[393900573,1763085039715,-209219.60289531,0.00017999,2]
[393900574,1763085039724,-1000.684,0.00017999,2]
[393900575,1763085039734,-300.0,0.00017999,2]
[393900576,1763085039743,-300.0,0.00017999,2]
[393900577,1763085039753,-309.52096424,0.00017999,2]
[393900578,1763085039763,-4354.0,0.00018,2]
[393900579,1763085039773,-153.20080745,0.00018,2]
[393900580,1763085039783,-4835473.19285021,0.00018,2]
[393900581,1763085039793,-1967499.38167184,0.00018,2]
[393900582,1763085039808,-14282.29486101,0.00018,2]
[393900583,1763085039820,-1673.29871079,0.00018,2]
[393900742,1763085086397,158.63767347,0.00040955,30]
[393900765,1763085424330,6030.26351994,0.0001685,2]
[393900766,1763085452259,175.78,0.00016826,2]
[393900767,1763085453428,175.78,0.00025239,120]
[393900769,1763085525551,150.0,0.0001668,2]
[393900770,1763085552286,3858.76,0.00040999,30]
[393900772,1763085596309,600.0,0.00040999,120]
[393900773,1763085661703,2500.0,0.0001685,2]
[393900787,1763085763214,1143.96648006,0.0001685,2]
[393900788,1763085763236,8856.04351994,0.0001685,2]
[393900789,1763085770374,1072.49011013,0.0001685,2]
[393900790,1763085791186,211.0,0.00040999,120]
[393900792,1763085807066,71.47636993,0.00016619,2]
[393900793,1763085807088,10000.01,0.00016619,2]
[393900794,1763085807110,772.23363007,0.00016619,2]
[393900795,1763085811709,9227.77636993,0.0001685,2]
[393900796,1763085811730,887.26004096,0.0001685,2]
[393900799,1763085866389,153.1503809,0.0001685,2]
[393900800,1763085872344,200.0,0.00016627,2]
[393900823,1763085933320,8759.59957814,0.0001685,2]
[393900824,1763085933342,10000.01,0.0001685,2]
[393900825,1763085933365,4545.38252186,0.0001685,2]
[393900826,1763085971168,153.20080745,0.000162,2]
[393900834,1763085991158,5301.42667069,0.00016612,2]
[393900835,1763085991180,10000.01,0.00016612,2]
[393900836,1763085991200,5451.37332931,0.00016612,2]
[393900843,1763086027895,166.66,0.00015785,2]
[393900844,1763086028156,166.66,0.00016118,2]
[393900845,1763086028436,166.66,0.0001645,2]
[393900846,1763086028651,166.66,0.00016782,2]
[393900849,1763086057260,202.18,0.0001658,2]
[393900850,1763086131769,153.15038088,0.0001685,2]
[393900851,1763086138513,3526.66628981,0.00016603,2]
[393900852,1763086138540,2511.10371019,0.00016603,2]
[393900854,1763086190596,2037.73120922,0.0001685,2]
[393900855,1763086198510,5451.17508059,0.0001685,2]
[393900856,1763086198532,3652.35768922,0.0001685,2]
[393900878,1763086229840,4000.0,0.00041,30]
[393900882,1763086231677,-254.42663831,0.00016945,2]
[393900883,1763086231687,-300.0,0.00016945,2]
[393900884,1763086231696,-534.62475374,0.00016949,2]
[393900885,1763086231705,-627.32335345,0.00016949,2]
[393900886,1763086231714,-308.58916616,0.0001695,2]
[393900888,1763086231723,-1868.4903557,0.0001695,2]
[393900889,1763086231749,-1136.25040493,0.0001695,2]
[393900890,1763086231785,-2010.63251615,0.0001695,2]
[393900891,1763086231798,-311.666,0.0001695,2]
[393900892,1763086231809,-2020.68829915,0.0001695,2]
[393900893,1763086231838,-3583.37983926,0.0001695,2]
[393900894,1763086231849,-2156.27335295,0.0001695,2]
[393900895,1763086231892,-971.06404498,0.0001695,2]
[393900896,1763086231902,-1280.95075832,0.0001695,2]
[393900897,1763086231913,-1360.08995707,0.0001695,2]
[393900898,1763086231924,-4983.13034796,0.0001695,2]
[393900899,1763086231999,-85664.13159414,0.0001695,2]
[393900902,1763086232010,-56277.42541316,0.0001695,2]
[393900949,1763086237705,-481.62479556,0.0001695,2]
[393900950,1763086237717,-1987.62,0.0001695,2]
[393900951,1763086237802,-900.0,0.0001695,2]
[393900979,1763086239838,-384.42911935,0.0001695,2]
[393900980,1763086239893,-527.17789698,0.0001695,2]
[393900981,1763086239905,-252094.97530434,0.0001695,2]
[393900982,1763086239914,-1000.0,0.0001695,2]
[393900983,1763086239923,-2037.73120913,0.00016967,2]
[393900984,1763086239932,-9103.53276979,0.00016967,2]
[393900985,1763086239941,-250.0,0.00017,2]
[393900986,1763086239951,-1857.41221718,0.00017,2]
[393900987,1763086239960,-475.07092795,0.00017082,2]
[393900988,1763086239970,-500.0,0.00017082,2]
[393900989,1763086239979,-295.81876555,0.00017082,2]
[393900990,1763086239989,-278.33679203,0.00017082,2]
[393900991,1763086239998,-500.0,0.00017082,2]
[393900992,1763086240008,-500.0,0.00017082,2]
[393900993,1763086240017,-2037.73120913,0.00017083,2]
[393900994,1763086240027,-9103.53276979,0.00017083,2]
[393900995,1763086240036,-485.0,0.00017092,2]
[393900996,1763086240047,-166.66,0.00017115,2]
[393900997,1763086240056,-5571.02,0.00017132,2]
[393900998,1763086240066,-4155.1236335,0.00017146,2]
[393900999,1763086240076,-1852.42,0.00017191,2]
[393901000,1763086240086,-2037.73120913,0.000172,2]
[393901001,1763086240095,-9103.53276979,0.000172,2]
[393901002,1763086240104,-600.0,0.000172,6]
[393901003,1763086240114,-485.0,0.00017249,2]
[393901004,1763086240124,-204.99,0.00017258,2]
[393901005,1763086240134,-2000.0,0.000173,2]
[393901006,1763086240143,-1300.0,0.000173,6]
[393901007,1763086240152,-2037.73120913,0.00017317,2]
[393901008,1763086240161,-9103.53276979,0.00017317,2]
[393901009,1763086240170,-1000.0,0.00017357,2]
[393901010,1763086240180,-2000.0,0.000174,6]
[393901011,1763086240189,-2037.73120913,0.00017433,2]
[393901012,1763086240199,-9103.53276979,0.00017433,2]
[393901013,1763086240208,-150.0,0.00017439,2]
[393901014,1763086240218,-166.66,0.00017447,2]
[393901016,1763086240227,-168.0,0.00017472,2]
[393901017,1763086240243,-424.0,0.00017475,2]
[393901018,1763086240258,-168.0,0.00017491,2]
[393901019,1763086240272,-221.4705787,0.00017497,2]
[393901020,1763086240284,-2700.0,0.000175,6]
[393901021,1763086240298,-424.0,0.00017505,2]
[393901022,1763086240307,-424.0,0.00017544,2]
[393901023,1763086240317,-424.0,0.00017549,2]
[393901024,1763086240327,-2037.73120913,0.0001755,2]
[393901025,1763086240337,-9103.53276979,0.0001755,2]
[393901026,1763086240347,-424.0,0.00017557,2]
[393901027,1763086240356,-150.0,0.00017578,2]
[393901028,1763086240365,-3300.0,0.000176,6]
[393901029,1763086240376,-2037.73120913,0.00017667,2]
[393901030,1763086240386,-9103.53276979,0.00017667,2]
[393901031,1763086240395,-168.0,0.0001769,2]
[393901032,1763086240406,-176.232,0.000177,2]
[393901033,1763086240417,-1845.563,0.000177,2]
[393901034,1763086240427,-600.0,0.000177,6]
[393901035,1763086240437,-151.0,0.00017719,2]
[393901036,1763086240448,-499.99,0.00017728,2]
[393901037,1763086240457,-1453.88,0.00017728,2]
[393901038,1763086240468,-9140.71,0.00017728,2]
[393901039,1763086240477,-2767.5,0.00017728,2]
[393901040,1763086240488,-1535.53,0.00017728,2]
[393901041,1763086240497,-9999.99,0.00017728,2]
[393901042,1763086240507,-903.59,0.00017728,2]
[393901043,1763086240516,-1523.15,0.00017728,2]
[393901044,1763086240525,-999.99,0.00017728,2]
[393901045,1763086240533,-3787.24,0.00017728,2]
[393901046,1763086240543,-9999.99,0.00017728,2]
[393901047,1763086240553,-299.99,0.00017728,4]
[393901048,1763086240566,-1223.88,0.00017728,2]
[393901049,1763086240575,-150.99,0.00017728,2]
[393901050,1763086240585,-150.99,0.00017728,2]
[393901051,1763086240594,-6289.07,0.00017728,2]
[393901052,1763086240604,-151.0,0.00017728,2]
[393901053,1763086240615,-151.0,0.00017732,2]
[393901054,1763086240624,-2037.73120913,0.00017783,2]
[393901055,1763086240633,-9103.53276979,0.00017783,2]
[393901056,1763086240645,-600.0,0.000178,6]
[393901057,1763086240654,-168.0,0.00017825,2]
[393901058,1763086240663,-424.0,0.00017828,2]
[393901059,1763086240672,-200.0,0.00017856,2]
[393901060,1763086240682,-424.0,0.0001788,2]
[393901061,1763086240690,-991.29600833,0.000179,3]
[393901062,1763086240699,-600.0,0.000179,6]
[393901063,1763086240708,-153.15038088,0.000179,2]
[393901064,1763086240717,-2037.73120913,0.000179,2]
[393901065,1763086240727,-500.0,0.00017973,2]
[393901066,1763086240736,-501.04147781,0.00017973,2]
[393901067,1763086240745,-501.44245862,0.00017973,2]
[393901068,1763086240754,-500.0,0.00017973,2]
[393901069,1763086240763,-500.0,0.00017973,2]
[393901070,1763086240772,-501.71636846,0.00017973,2]
[393901071,1763086240781,-500.44352887,0.00017973,2]
[393901072,1763086240791,-502.86317958,0.00017973,2]
[393901073,1763086240801,-473.74692978,0.00017973,2]
[393901074,1763086240810,-503.06763194,0.00017973,2]
[393901075,1763086240819,-164.75502713,0.00017973,2]
[393901076,1763086240829,-500.82679889,0.00017973,2]
[393901077,1763086240838,-588.90929698,0.00017973,2]
[393901078,1763086240847,-500.94674946,0.00017973,2]
[393901079,1763086240856,-503.73540755,0.00017973,2]
[393901080,1763086240865,-500.0,0.00017973,2]
[393901081,1763086240874,-500.0,0.00017973,2]
[393901082,1763086240883,-300.0,0.00017973,2]
[393901083,1763086240892,-300.0,0.00017999,2]
[393901084,1763086240901,-4152.0,0.00018,2]
[393901085,1763086240911,-6570200.56568503,0.00018,2]
[393901086,1763086240925,-10088.13599999,0.00018,2]
[393901087,1763086240948,-9320.30823981,0.00018,2]
[393901088,1763086240963,-996.11499998,0.00018,2]
[393901089,1763086240973,-547.67802008,0.00018,2]
[393901097,1763086245813,-1665.63336591,0.000179,2]
[393901098,1763086246514,-2983.4383552,0.000179,2]
[393901100,1763086298065,10000.01,0.0001685,2]
[393901101,1763086298092,10000.01,0.0001685,2]
[393901102,1763086298124,10000.01,0.0001685,2]
[393901103,1763086298151,10000.01,0.0001685,2]
[393901104,1763086298175,10000.01,0.0001685,2]
[393901105,1763086298199,10000.01,0.0001685,2]
[393901106,1763086298222,10000.01,0.0001685,2]
[393901107,1763086298245,10000.01,0.0001685,2]
[393901108,1763086298268,10000.01,0.0001685,2]
[393901109,1763086298291,10000.01,0.0001685,2]
[393901112,1763086306807,-5102.62669727,0.0001685,2]
[393901113,1763086307202,-10000.01,0.0001685,2]
[393901114,1763086307240,-10000.01,0.0001685,2]
[393901115,1763086307296,-10000.01,0.0001685,2]
[393901116,1763086307422,-10000.01,0.0001685,2]
[393901117,1763086307536,-10000.01,0.0001685,2]
[393901118,1763086307654,-10000.01,0.0001685,2]
[393901119,1763086307806,-10000.01,0.0001685,2]
[393901120,1763086307914,-10000.01,0.0001685,2]
[393901121,1763086308023,-10000.01,0.0001685,2]
[393901122,1763086313008,-10000.01,0.0001685,2]
[393901123,1763086313130,-10000.01,0.0001685,2]
[393901124,1763086313251,-10000.01,0.0001685,2]
[393901125,1763086313373,-10000.01,0.0001685,2]
[393901126,1763086313484,-10000.01,0.0001685,2]
[393901127,1763086313620,-10000.01,0.0001685,2]
[393901128,1763086313728,-10000.01,0.0001685,2]
[393901129,1763086313836,-10000.01,0.0001685,2]
[393901130,1763086313938,-10000.01,0.0001685,2]
[393901131,1763086314044,-10000.01,0.0001685,2]
[393901132,1763086319191,-10000.01,0.0001685,2]
[393901133,1763086319286,-10000.01,0.0001685,2]
[393901134,1763086319632,-10000.01,0.0001685,2]
[393901135,1763086319654,-10000.01,0.0001685,2]
[393901136,1763086319757,-10000.01,0.0001685,2]
[393901137,1763086319783,-10000.01,0.0001685,2]
[393901138,1763086319863,-10000.01,0.0001685,2]
[393901139,1763086319962,-10000.01,0.0001685,2]
[393901140,1763086320073,-10000.01,0.0001685,2]
[393901141,1763086320180,-10000.01,0.0001685,2]
[393901142,1763086328448,-550.0,0.00016849,2]
[393901143,1763086328486,-8900.01,0.0001685,2]
[393901144,1763086328560,-10000.01,0.0001685,2]
[393901146,1763086334614,-4003.04669727,0.0001685,2]
[393901147,1763086334647,-1993.91660546,0.0001685,2]
[393901148,1763086334719,-1000.0,0.0001685,2]
[393901149,1763086334748,-1676.7842,0.0001685,2]
[393901150,1763086334791,-4646.4416,0.0001685,2]
[393901151,1763086337843,-2500.0,0.0001685,2]
[393901152,1763086414622,388.5551,0.00016849,2]
[393901153,1763086434958,150.0,0.00016914,120]
[393901174,1763086531344,932.26,0.00013699,2]
[393901177,1763086782402,438.13,0.00040997,120]
[393901179,1763086809402,1843.05,0.00016438,2]
[393901204,1763086858102,10000.01,0.00016627,2]
[393901205,1763086858123,10000.01,0.00016627,2]
[393901206,1763086858144,79.46,0.00016627,2]
[393901207,1763086898120,708.9,8.257e-05,2]
[393901208,1763086898362,708.9,8.692e-05,2]
[393901209,1763086898950,708.9,9.126e-05,2]
[393901210,1763086899019,708.9,9.561e-05,2]
[393901211,1763086899084,708.9,9.996e-05,2]
[393901212,1763086899307,708.9,0.0001043,2]
[393901213,1763086899531,708.9,0.00010865,2]
[393901214,1763086899767,708.9,0.000113,2]
[393901215,1763086899974,708.9,0.00011734,2]
[393901216,1763086900207,708.9,0.00012169,2]
[393901217,1763086900434,708.9,0.00012603,2]
[393901218,1763086900651,708.9,0.00013038,2]
[393901219,1763086900869,708.9,0.00013473,2]
[393901220,1763086901103,704.85,0.00013907,2]
[393901221,1763086901127,4.05,0.00013907,2]
[393901222,1763086901323,708.9,0.00014342,2]
[393901223,1763086901780,708.9,0.00014776,2]
[393901224,1763086902003,708.9,0.00015211,2]
[393901225,1763086902230,708.9,0.00015646,2]
[393901226,1763086902448,708.9,0.0001608,2]
[393901227,1763086902676,708.9,0.00016515,2]
[393901246,1763087101452,1890.54,0.00016445,2]
[393901252,1763087110763,3852.02,0.000154,2]
[393901253,1763087110787,10000.01,0.000154,2]
[393901254,1763087110811,2703.04348285,0.000154,2]
[393901269,1763087120188,620.52893851,9e-05,2]
[393901275,1763087126165,1020.1245818,0.000108,2]
[393901277,1763087132068,169.90776689,0.0002,120]
[393901278,1763087133450,5063.04,0.00016436,2]
[393901279,1763087133824,238.04650439,0.0003013,120]
[393901280,1763087136238,593.27299684,0.0001,2]
[393901281,1763087136260,6078.48266238,0.0001,2]
[393901282,1763087153028,250.0,0.0001643,2]
[393901283,1763087160984,3671.52733762,8e-05,2]
[393901284,1763087161006,10000.01,8e-05,2]
[393901285,1763087161028,3489.98848926,8e-05,2]
[393901286,1763087164691,6510.02151074,0.00011,2]
[393901287,1763087164714,2843.30791101,0.00011,2]
[393901288,1763087170588,150.0,0.000162,2]
[393901289,1763087171171,150.0,0.00016425,2]
[393901290,1763087171201,150.0,0.0001665,2]
[393901291,1763087177662,-150.0,0.00016875,2]
[393901292,1763087185418,2031.207984,0.00015,2]
[393901293,1763087202900,668.61212818,0.0003,120]
[393901294,1763087213340,7668.802016,0.000162,5]
[393901295,1763087213364,10000.01,0.000162,5]
[393901296,1763087213388,10000.01,0.000162,5]
[393901297,1763087213411,10000.01,0.000162,5]
[393901298,1763087213434,595.03535928,0.000162,5]
[393901299,1763087264266,9404.97464072,0.00013,15]
[393901300,1763087264302,3169.32215206,0.00013,15]
[393901301,1763087264793,6610.02448776,0.00040998,120]
[393901302,1763087265925,150.39,0.00030137,120]
[393901304,1763087284672,200.0,0.0001634,2]
[393901305,1763087292799,150.0,0.00016315,2]
[393901306,1763087296704,6480.68784794,0.00015,2]
[393901307,1763087296725,10000.01,0.00015,2]
[393901308,1763087296747,8800.78319676,0.00015,2]
[393901309,1763087299482,153.17361698,0.00040998,30]
[393901315,1763087307933,503.49850835,0.000154,2]
[393901317,1763087311085,695.72829489,0.00015807,2]
[393901318,1763087311107,1224.14497707,0.00015807,2]
[393901319,1763087314001,8775.86502293,0.00015,3]
[393901320,1763087314022,10000.01,0.00015,3]
[393901321,1763087314045,10000.01,0.00015,3]
[393901322,1763087314068,10000.01,0.00015,3]
[393901323,1763087314090,10000.01,0.00015,3]
[393901324,1763087314113,10000.01,0.00015,3]
[393901325,1763087314137,10000.01,0.00015,3]
[393901326,1763087314159,10000.01,0.00015,3]
[393901327,1763087314180,10000.01,0.00015,3]
[393901328,1763087314207,19933.41731851,0.00015,3]
[393901329,1763087314231,30000.0,0.00015,3]
[393901330,1763087314257,6410.64067558,0.00015,3]
[393901331,1763087314743,25375.27653617,0.00015,2]
[393901333,1763087316013,183.25661598,0.0003,120]
[393901335,1763087347955,4578.259595,7.945e-05,2]
[393901336,1763087360791,770.399917,0.00016826,2]
[393901337,1763087363165,255.72,0.00016295,2]
[393901351,1763087415466,1656.97490472,0.00016812,2]
[393901362,1763087430807,500.0,0.00016811,2]
[393901376,1763087432054,-239.20361191,0.00016899,2]
[393901377,1763087432063,-300.0,0.00016911,2]
[393901378,1763087432074,-300.0,0.00016912,2]
[393901379,1763087432084,-150.0,0.00016914,2]
[393901380,1763087432093,-300.0,0.0001692,2]
[393901381,1763087432103,-1592.13066402,0.0001699,2]
[393901382,1763087432113,-300.0,0.00016999,2]
[393901383,1763087432123,-1200.0,0.00016999,2]
[393901384,1763087432132,-550.0,0.00016999,2]
[393901385,1763087432141,-239.20361189,0.00016999,2]
[393901386,1763087432151,-250.0,0.00017,2]
[393901387,1763087432161,-204.15819311,0.00017,2]
[393901388,1763087432172,-6984.6,0.00017,2]
[393901389,1763087432228,-1452.16780799,0.00017,2]
[393901390,1763087432255,-20960.34127164,0.00017,2]
[393901396,1763087434043,610.0,0.00016253,2]
[393901401,1763087437929,-1294.87960001,0.00017,2]
[393901402,1763087437940,-6865.05796692,0.00017,2]
[393901403,1763087437950,-1857.41221718,0.00017,2]
[393901404,1763087437959,-1500.0,0.00017,6]
[393901405,1763087437968,-200.0,0.00017011,2]
[393901406,1763087437977,-1200.0,0.00017099,2]
[393901407,1763087437988,-239.20361189,0.00017099,2]
[393901408,1763087437997,-150.0,0.000171,2]
[393901409,1763087438006,-3100.0,0.000171,6]
[393901410,1763087438016,-6134.60769288,0.00017173,2]
[393901411,1763087438025,-9165.42547879,0.00017199,2]
[393901412,1763087438036,-280.1941,0.000172,2]
[393901413,1763087438046,-4076.7226,0.000172,2]
[393901414,1763087438056,-9686.74093906,0.000172,2]
[393901420,1763087440058,-7677.97096094,0.000172,2]
[393901421,1763087440068,-5100.7055,0.000172,2]
[393901422,1763087440078,-4700.0,0.000172,6]
[393901423,1763087440088,-12336.05575581,0.0001721,2]
[393901424,1763087440168,-10192.17424419,0.0001721,2]
[393901425,1763087440178,-9165.42547872,0.00017277,2]
[393901426,1763087440188,-500.0,0.00017298,2]
[393901427,1763087440198,-586.31952343,0.00017298,2]
[393901428,1763087440207,-500.0,0.00017298,2]
[393901429,1763087440217,-500.0,0.00017298,2]
[393901430,1763087440226,-500.0,0.00017298,2]
[393901431,1763087440235,-500.0,0.00017298,2]
[393901432,1763087440244,-500.0,0.00017298,2]
[393901433,1763087440254,-500.0,0.00017298,2]
[393901434,1763087440263,-500.0,0.00017298,2]
[393901435,1763087440272,-500.0,0.00017298,2]
[393901436,1763087440282,-500.0,0.00017298,2]
[393901437,1763087440291,-500.0,0.00017298,2]
[393901438,1763087440301,-500.0,0.00017298,2]
[393901439,1763087440311,-500.0,0.00017298,2]
[393901440,1763087440320,-500.0,0.00017298,2]
[393901441,1763087440331,-500.0,0.00017298,2]
[393901442,1763087440340,-500.0,0.00017298,2]
[393901443,1763087440349,-500.0,0.00017298,2]
[393901444,1763087440358,-500.0,0.00017298,2]
[393901445,1763087440367,-185.85522241,0.00017298,2]
[393901446,1763087440376,-500.0,0.00017298,2]
[393901447,1763087440386,-188.23726033,0.00017298,2]
[393901448,1763087440395,-500.0,0.00017298,2]
[393901449,1763087440404,-500.0,0.00017298,2]
[393901450,1763087440414,-500.0,0.00017298,2]
[393901451,1763087440423,-500.0,0.00017298,2]
[393901452,1763087440433,-500.0,0.00017298,2]
[393901453,1763087440443,-500.0,0.00017298,2]
[393901454,1763087440452,-500.0,0.00017298,2]
[393901455,1763087440461,-500.0,0.00017298,2]
[393901456,1763087440471,-500.0,0.00017298,2]
[393901457,1763087440480,-500.0,0.00017298,2]
[393901458,1763087440490,-500.0,0.00017298,2]
[393901459,1763087440499,-500.0,0.00017298,2]
[393901460,1763087440508,-486.65961404,0.00017298,2]
[393901461,1763087440518,-500.0,0.00017298,2]
[393901462,1763087440528,-500.0,0.00017298,2]
[393901463,1763087440538,-500.0,0.00017298,2]
[393901464,1763087440546,-500.0,0.00017298,2]
[393901465,1763087440555,-500.0,0.00017298,2]
[393901466,1763087440565,-500.0,0.00017298,2]
[393901467,1763087440574,-500.0,0.00017298,2]
[393901468,1763087440583,-500.0,0.00017298,2]
[393901469,1763087440593,-500.0,0.00017298,2]
[393901470,1763087440603,-500.0,0.00017298,2]
[393901471,1763087440612,-500.0,0.00017298,2]
[393901472,1763087440621,-500.0,0.00017298,2]
[393901473,1763087440630,-500.0,0.00017298,2]
[393901474,1763087440641,-500.0,0.00017298,2]
[393901475,1763087440651,-500.0,0.00017298,2]
[393901476,1763087440659,-1000.0,0.00017299,2]
[393901477,1763087440669,-6289.07,0.000173,2]
[393901478,1763087440678,-1523.15,0.000173,2]
[393901479,1763087440688,-1223.88,0.000173,2]
[393901480,1763087440697,-3817.43,0.000173,2]
[393901481,1763087440707,-9999.99,0.000173,2]
[393901482,1763087440715,-499.99,0.000173,2]
[393901483,1763087440726,-9999.99,0.000173,2]
[393901484,1763087440735,-1535.53,0.000173,2]
[393901485,1763087440744,-299.99,0.000173,4]
[393901486,1763087440753,-2767.5,0.000173,2]
[393901487,1763087440762,-3581.74,0.000173,2]
[393901488,1763087440771,-903.59,0.000173,2]
[393901489,1763087440781,-9601.88,0.000173,2]
[393901490,1763087440790,-150.99,0.000173,2]
[393901491,1763087440799,-15139.99,0.000173,2]
[393901492,1763087440808,-150.99,0.000173,2]
[393901493,1763087440818,-6200.0,0.000173,6]
[393901494,1763087440827,-150.0,0.00017325,2]